Workbook

Sheet Vodnik
G1: VODNIK | H1: DOHODEK
B2: OSEBNI DENARNI TOK
B3: Ta delovni zvezek ima letne, mesečne in dnevne delovne liste za spremljanje denarnega toka. Izberite vrsto denarnega toka, ki vam najbolj ustreza, lahko pa uporabite vse, da pridobite vpogled v osebni denarni tok.
B5: Letni denarni tok | D5: Mesečni denarni tok | F5: Dnevni denarni tok
B6: Vnesite znesek letnega denarnega toka na različnih področjih. Oglejte si mesečno razčlenitev in primerjave ter, kar je tudi najpomembnejše, kakšno je vaše stanje na področju letnih in mesečnih zneskov. | D6: Vnesite znesek mesečnega denarnega toka ali ocenite stanje v preostalih mesecih, če si želite ogledati predvideni denarni tok v letu za vsak mesec posebej. | F6: Vnesite predvideni znesek denarnega toka glede na vaše vsakdanje izkušnje in si oglejte predvidene letne ter mesečne skupne zneske. Tako boste lažje razumeli, koliko denarja naj bi dnevno porabili v naslednjem mesecu ali letu.

Sheet Letni denarni tok
B1: OSEBNI DENARNI TOK | G1: VODNIK | H1: LETNI DENARNI TOK | J1: MESEČNI DENARNI TOK
B2: Skupni denarni tok do današnjega datuma: | D2: =LetniDenarniTokDoDanes -> 39,750.00 € | G2: To je letna ocena. Uporabite delovni list, če si želite ogledati letne zneske s predvidenimi mesečnimi vrednostmi. Uporaba drugih delovnih listov za dodajanje dnevnih elementov.
B3: POVZETEK DOHODKA | F3: POVZETEK STROŠKOV | J3: POVZETEK DISKRECIJSKIH STROŠKOV | N3: POVZETEK PRIHRANKOV
B4: Skupaj letno: | C4: =Dohodek!C10 -> 125,000.00 € | F4: Skupaj letno: | G4: =Stroški[[#Totals],[Letno ]] -> 49,000.00 € | J4: Skupaj letno: | K4: =Diskrecijsko[[#Totals],[Letno ]] -> 13,250.00 € | N4: Skupaj letno: | O4: =Prihranki[[#Totals],[Letno ]] -> 23,000.00 €
B5: Tortni grafikon, ki prikazuje dohodek iz različnih virov, je v tej celici. | F5: Tortni grafikon, ki prikazuje stroške, je v tej celici. | J5: Tortni grafikon, ki prikazuje diskrecijske stroške, je v tej celici. | N5: Tortni grafikon, ki prikazuje prihranke in vlaganja, je v tej celici.
B6: Skupaj mesečno: | C6: =Dohodek!D10 -> 10,416.67 € | F6: Skupaj mesečno: | G6: =Stroški[[#Totals],[Mesečno ]] -> 4,083.33 € | J6: Skupaj mesečno: | K6: =Diskrecijsko[[#Totals],[Mesečno ]] -> 1,104.17 € | N6: Skupaj mesečno: | O6: =Prihranki!D9 -> 1,916.67 €

Sheet Mesečni denarni tok
B1: OSEBNI DENARNI TOK | H1: VODNIK | I1: LETNI DENARNI TOK | J1: MESEČNI DENARNI TOK | K1: DNEVNI POVZETEK
B2: Skupni mesečni denarni tok: | D2: =MesečniDenarniTokDoDanes -> 18,380.00 € | F2: OPOMBA: Ocenite mesečni znesek/vrednost dnevnih elementov in ga vstavite v stolpec za ustrezni mesec.
B3: Vrsta | C3: Opis | D3: Jan | E3: Feb | F3: Mar | G3: Apr | H3: Maj | I3: Jun | J3: Jul | K3: Avg | L3: Sep | M3: Okt | N3: Nov | O3: Dec | P3: Skupni znesek
B4: Dohodek | C4: Plača | D4: 7,500.00 € | E4: 7,500.00 € | F4: 7,500.00 € | G4: 7,500.00 € | H4: 7,500.00 € | I4: 7,500.00 € | P4: =SUM(Mesečno[[#This Row],[Jan]:[Dec]]) -> 45,000.00 €
B5: Dohodek | C5: Provizije/dodatki | D5: 400.00 € | E5: 400.00 € | F5: 500.00 € | G5: 200.00 € | H5: 0.00 € | I5: 600.00 € | P5: =SUM(Mesečno[[#This Row],[Jan]:[Dec]]) -> 2,100.00 €
B6: Dohodek | C6: Drugo 1 | D6: 2,500.00 € | E6: 2,500.00 € | F6: 2,500.00 € | G6: 2,500.00 € | H6: 2,500.00 € | I6: 2,500.00 € | P6: =SUM(Mesečno[[#This Row],[Jan]:[Dec]]) -> 15,000.00 €
B7: Dohodek | C7: Drugo 2 | D7: 0.00 € | E7: 0.00 € | F7: 0.00 € | G7: 0.00 € | H7: 0.00 € | I7: 0.00 € | P7: =SUM(Mesečno[[#This Row],[Jan]:[Dec]]) -> 0.00 €
B8: Dohodek | C8: Drugo 3 | D8: 0.00 € | E8: 0.00 € | F8: 0.00 € | G8: 0.00 € | H8: 0.00 € | I8: 0.00 € | P8: =SUM(Mesečno[[#This Row],[Jan]:[Dec]]) -> 0.00 €
B9: Dohodek | C9: Drugo 4 | D9: 0.00 € | E9: 0.00 € | F9: 0.00 € | G9: 0.00 € | H9: 0.00 € | I9: 0.00 € | P9: =SUM(Mesečno[[#This Row],[Jan]:[Dec]]) -> 0.00 €
B10: Stroški | C10: Zdravstveno zavarovanje | D10: 1,250.00 € | E10: 1,250.00 € | F10: 1,250.00 € | G10: 1,250.00 € | H10: 1,250.00 € | I10: 1,250.00 € | P10: =SUM(Mesečno[[#This Row],[Jan]:[Dec]]) -> 7,500.00 €
B11: Stroški | C11: Državni davek na dohodek | D11: 208.33 € | E11: 208.33 € | F11: 208.33 € | G11: 208.33 € | H11: 208.33 € | I11: 208.33 € | P11: =SUM(Mesečno[[#This Row],[Jan]:[Dec]]) -> 1,250.00 €
B12: Stroški | C12: Davek na motorna vozila/pristojbine | D12: 16.67 € | E12: 16.67 € | F12: 16.67 € | G12: 16.67 € | H12: 16.67 € | I12: 16.67 € | P12: =SUM(Mesečno[[#This Row],[Jan]:[Dec]]) -> 100.00 €
B13: Stroški | C13: Z motornimi vozili povezana plačila | D13: 333.33 € | E13: 333.33 € | F13: 333.33 € | G13: 333.33 € | H13: 333.33 € | I13: 333.33 € | P13: =SUM(Mesečno[[#This Row],[Jan]:[Dec]]) -> 2,000.00 €
B14: Stroški | C14: Hipoteka/najemnina | D14: 1,250.00 € | E14: 1,250.00 € | F14: 1,250.00 € | G14: 1,250.00 € | H14: 1,250.00 € | I14: 1,250.00 € | P14: =SUM(Mesečno[[#This Row],[Jan]:[Dec]]) -> 7,500.00 €
B15: Stroški | C15: Zavarovanje | D15: 25.00 € | E15: 25.00 € | F15: 25.00 € | G15: 25.00 € | H15: 25.00 € | I15: 25.00 € | P15: =SUM(Mesečno[[#This Row],[Jan]:[Dec]]) -> 150.00 €
B16: Stroški | C16: Elektrika | D16: 100.00 € | E16: 100.00 € | F16: 100.00 € | G16: 100.00 € | H16: 100.00 € | I16: 100.00 € | P16: =SUM(Mesečno[[#This Row],[Jan]:[Dec]]) -> 600.00 €
B17: Stroški | C17: Plin | D17: 50.00 € | E17: 50.00 € | F17: 50.00 € | G17: 50.00 € | H17: 50.00 € | I17: 50.00 € | P17: =SUM(Mesečno[[#This Row],[Jan]:[Dec]]) -> 300.00 €
B18: Stroški | C18: Voda | D18: 50.00 € | E18: 50.00 € | F18: 50.00 € | G18: 50.00 € | H18: 50.00 € | I18: 50.00 € | P18: =SUM(Mesečno[[#This Row],[Jan]:[Dec]]) -> 300.00 €
B19: Stroški | C19: Kanalščina | D19: 25.00 € | E19: 25.00 € | F19: 25.00 € | G19: 25.00 € | H19: 25.00 € | I19: 25.00 € | P19: =SUM(Mesečno[[#This Row],[Jan]:[Dec]]) -> 150.00 €
B20: Stroški | C20: Odvoz smeti | D20: 12.50 € | E20: 12.50 € | F20: 12.50 € | G20: 12.50 € | H20: 12.50 € | I20: 12.50 € | P20: =SUM(Mesečno[[#This Row],[Jan]:[Dec]]) -> 75.00 €
B21: Stroški | C21: Telefon | D21: 50.00 € | E21: 50.00 € | F21: 50.00 € | G21: 50.00 € | H21: 50.00 € | I21: 50.00 € | P21: =SUM(Mesečno[[#This Row],[Jan]:[Dec]]) -> 300.00 €
B22: Stroški | C22: Internet | D22: 50.00 € | E22: 50.00 € | F22: 50.00 € | G22: 50.00 € | H22: 50.00 € | I22: 50.00 € | P22: =SUM(Mesečno[[#This Row],[Jan]:[Dec]]) -> 300.00 €
B23: Stroški | C23: Premije za življenjsko zavarovanje/invalidnino | D23: 125.00 € | E23: 125.00 € | F23: 125.00 € | G23: 125.00 € | H23: 125.00 € | I23: 125.00 € | P23: =SUM(Mesečno[[#This Row],[Jan]:[Dec]]) -> 750.00 €
B24: Stroški | C24: Hrana | D24: 400.00 € | E24: 500.00 € | F24: 450.00 € | G24: 400.00 € | H24: 450.00 € | I24: 425.00 € | P24: =SUM(Mesečno[[#This Row],[Jan]:[Dec]]) -> 2,625.00 €
B25: Stroški | C25: Oblačila | D25: 50.00 € | E25: 75.00 € | F25: 100.00 € | G25: 75.00 € | H25: 125.00 € | I25: 75.00 € | P25: =SUM(Mesečno[[#This Row],[Jan]:[Dec]]) -> 500.00 €
B26: Stroški | C26: Stroški za zdravstvo/zobozdravstvo | D26: 50.00 € | E26: 10.00 € | F26: 25.00 € | G26: 25.00 € | H26: 20.00 € | I26: 70.00 € | P26: =SUM(Mesečno[[#This Row],[Jan]:[Dec]]) -> 200.00 €
B27: Stroški | C27: Avtobus | D27: 30.00 € | E27: 30.00 € | F27: 30.00 € | G27: 20.00 € | H27: 30.00 € | I27: 30.00 € | P27: =SUM(Mesečno[[#This Row],[Jan]:[Dec]]) -> 170.00 €
B28: Stroški | C28: Drugo 2 | D28: 0.00 € | E28: 0.00 € | F28: 0.00 € | G28: 0.00 € | H28: 0.00 € | I28: 0.00 € | P28: =SUM(Mesečno[[#This Row],[Jan]:[Dec]]) -> 0.00 €
B29: Stroški | C29: Drugo 3 | D29: 0.00 € | E29: 0.00 € | F29: 0.00 € | G29: 0.00 € | H29: 0.00 € | I29: 0.00 € | P29: =SUM(Mesečno[[#This Row],[Jan]:[Dec]]) -> 0.00 €
B30: Stroški | C30: Drugo 4 | D30: 0.00 € | E30: 0.00 € | F30: 0.00 € | G30: 0.00 € | H30: 0.00 € | I30: 0.00 € | P30: =SUM(Mesečno[[#This Row],[Jan]:[Dec]]) -> 0.00 €
B31: Diskrecijsko | C31: Kosila v restavracijah | D31: 50.00 € | E31: 150.00 € | F31: 100.00 € | G31: 50.00 € | H31: 150.00 € | I31: 100.00 € | P31: =SUM(Mesečno[[#This Row],[Jan]:[Dec]]) -> 600.00 €
B32: Diskrecijsko | C32: Darila | D32: 25.00 € | E32: 75.00 € | F32: 50.00 € | G32: 25.00 € | H32: 75.00 € | I32: 50.00 € | P32: =SUM(Mesečno[[#This Row],[Jan]:[Dec]]) -> 300.00 €
B33: Diskrecijsko | C33: Potovanja | D33: 0.00 € | E33: 0.00 € | F33: 1,000.00 € | G33: 0.00 € | H33: 0.00 € | I33: 1,000.00 € | P33: =SUM(Mesečno[[#This Row],[Jan]:[Dec]]) -> 2,000.00 €
B34: Diskrecijsko | C34: Zabava | D34: 50.00 € | E34: 150.00 € | F34: 100.00 € | G34: 50.00 € | H34: 150.00 € | I34: 100.00 € | P34: =SUM(Mesečno[[#This Row],[Jan]:[Dec]]) -> 600.00 €
B35: Diskrecijsko | C35: Osebna nega | D35: 15.00 € | E35: 25.00 € | F35: 35.00 € | G35: 15.00 € | H35: 25.00 € | I35: 35.00 € | P35: =SUM(Mesečno[[#This Row],[Jan]:[Dec]]) -> 150.00 €
B36: Diskrecijsko | C36: Nakupovanje | D36: 100.00 € | E36: 200.00 € | F36: 150.00 € | G36: 175.00 € | H36: 150.00 € | I36: 175.00 € | P36: =SUM(Mesečno[[#This Row],[Jan]:[Dec]]) -> 950.00 €
B37: Diskrecijsko | C37: Dobrodelne organizacije | D37: 50.00 € | E37: 50.00 € | F37: 50.00 € | G37: 50.00 € | H37: 50.00 € | I37: 50.00 € | P37: =SUM(Mesečno[[#This Row],[Jan]:[Dec]]) -> 300.00 €
B38: Diskrecijsko | C38: Članarine v klubih | D38: 25.00 € | E38: 25.00 € | F38: 25.00 € | G38: 25.00 € | H38: 25.00 € | I38: 25.00 € | P38: =SUM(Mesečno[[#This Row],[Jan]:[Dec]]) -> 150.00 €
B39: Diskrecijsko | C39: Izboljšave doma | D39: 400.00 € | E39: 400.00 € | F39: 400.00 € | G39: 400.00 € | H39: 400.00 € | I39: 400.00 € | P39: =SUM(Mesečno[[#This Row],[Jan]:[Dec]]) -> 2,400.00 €
B40: Diskrecijsko | C40: Drugo 1 | D40: 0.00 € | E40: 0.00 € | F40: 0.00 € | G40: 0.00 € | H40: 0.00 € | I40: 0.00 € | P40: =SUM(Mesečno[[#This Row],[Jan]:[Dec]]) -> 0.00 €
B41: Diskrecijsko | C41: Drugo 2 | D41: 0.00 € | E41: 0.00 € | F41: 0.00 € | G41: 0.00 € | H41: 0.00 € | I41: 0.00 € | P41: =SUM(Mesečno[[#This Row],[Jan]:[Dec]]) -> 0.00 €
B42: Prihranki | C42: Denarne rezerve | D42: 416.67 € | E42: 416.67 € | F42: 416.67 € | G42: 416.67 € | H42: 416.67 € | I42: 416.67 € | P42: =SUM(Mesečno[[#This Row],[Jan]:[Dec]]) -> 2,500.00 €
B43: Prihranki | C43: 401.000/itd | D43: 1,000.00 € | E43: 1,000.00 € | F43: 1,000.00 € | G43: 1,000.00 € | H43: 1,000.00 € | I43: 1,000.00 € | P43: =SUM(Mesečno[[#This Row],[Jan]:[Dec]]) -> 6,000.00 €
B44: Prihranki | C44: Račun za prihranke/naložbe | D44: 500.00 € | E44: 500.00 € | F44: 500.00 € | G44: 500.00 € | H44: 500.00 € | I44: 500.00 € | P44: =SUM(Mesečno[[#This Row],[Jan]:[Dec]]) -> 3,000.00 €
B45: Prihranki | C45: Drugo 1 | D45: 0.00 € | E45: 0.00 € | F45: 0.00 € | G45: 0.00 € | H45: 0.00 € | I45: 0.00 € | P45: =SUM(Mesečno[[#This Row],[Jan]:[Dec]]) -> 0.00 €
B46: Prihranki | C46: Drugo 2 | D46: 0.00 € | E46: 0.00 € | F46: 0.00 € | G46: 0.00 € | H46: 0.00 € | I46: 0.00 € | P46: =SUM(Mesečno[[#This Row],[Jan]:[Dec]]) -> 0.00 €
B47: Skupni znesek | D47: =SUMIF(Mesečno[Vrsta],"Dohodek",Mesečno[Jan])-SUMIF(Mesečno[Vrsta],"<>Dohodek",Mesečno[Jan]) -> 3,692.50 € | E47: =SUMIF(Mesečno[Vrsta],"Dohodek",Mesečno[Feb])-SUMIF(Mesečno[Vrsta],"<>Dohodek",Mesečno[Feb]) -> 3,247.50 € | F47: =SUMIF(Mesečno[Vrsta],"Dohodek",Mesečno[Mar])-SUMIF(Mesečno[Vrsta],"<>Dohodek",Mesečno[Mar]) -> 2,522.50 € | G47: =SUMIF(Mesečno[Vrsta],"Dohodek",Mesečno[Apr])-SUMIF(Mesečno[Vrsta],"<>Dohodek",Mesečno[Apr]) -> 3,427.50 € | H47: =SUMIF(Mesečno[Vrsta],"Dohodek",Mesečno[Maj])-SUMIF(Mesečno[Vrsta],"<>Dohodek",Mesečno[Maj]) -> 2,887.50 € | I47: =SUMIF(Mesečno[Vrsta],"Dohodek",Mesečno[Jun])-SUMIF(Mesečno[Vrsta],"<>Dohodek",Mesečno[Jun]) -> 2,602.50 € | J47: =SUMIF(Mesečno[Vrsta],"Dohodek",Mesečno[Jul])-SUMIF(Mesečno[Vrsta],"<>Dohodek",Mesečno[Jul]) -> 0.00 € | K47: =SUMIF(Mesečno[Vrsta],"Dohodek",Mesečno[Avg])-SUMIF(Mesečno[Vrsta],"<>Dohodek",Mesečno[Avg]) -> 0.00 € | L47: =SUMIF(Mesečno[Vrsta],"Dohodek",Mesečno[Sep])-SUMIF(Mesečno[Vrsta],"<>Dohodek",Mesečno[Sep]) -> 0.00 € | M47: =SUMIF(Mesečno[Vrsta],"Dohodek",Mesečno[Okt])-SUMIF(Mesečno[Vrsta],"<>Dohodek",Mesečno[Okt]) -> 0.00 € | N47: =SUMIF(Mesečno[Vrsta],"Dohodek",Mesečno[Nov])-SUMIF(Mesečno[Vrsta],"<>Dohodek",Mesečno[Nov]) -> 0.00 € | O47: =SUMIF(Mesečno[Vrsta],"Dohodek",Mesečno[Dec])-SUMIF(Mesečno[Vrsta],"<>Dohodek",Mesečno[Dec]) -> 0.00 € | P47: =SUMIF(Mesečno[Vrsta],"Dohodek",Mesečno[Skupni znesek])-SUMIF(Mesečno[Vrsta],"<>Dohodek",Mesečno[Skupni znesek]) -> 18,380.00 €

Sheet Dnevni povzetek
B1: OSEBNI DENARNI TOK | F1: VODNIK | G1: MESEČNI DENARNI TOK | H1: DNEVNI POVZETEK | I1: DOHODEK
B2: Skupna razpoložljiva sredstva: | D2: =DnevniDenarniTok -> 577.84 € | F2: OPOMBA: Če želite v tabelo dodati dnevne elemente, ocenite njihov mesečni znesek/vrednost in vnesite vrednost v stolpec za ustrezni mesec.
B3: DNEVNI POVZETEK
B4: SKUPNI ZNESKI | C4: Dnevno | D4: Mesečno | E4: Letno
B5: Dohodek | C5: =SUMIF(Dnevno[Vrsta],$B5,Dnevno[Dnevno]) -> 342.47 € | D5: =SUMIF(Dnevno[Vrsta],$B5,Dnevno[Mesečno]) -> 10,416.80 € | E5: =SUMIF(Dnevno[Vrsta],$B5,Dnevno[Letno]) -> 125,001.55 €
B6: Stroški | C6: =SUMIF(Dnevno[Vrsta],$B6,Dnevno[Dnevno]) -> 136.06 € | D6: =SUMIF(Dnevno[Vrsta],$B6,Dnevno[Mesečno]) -> 4,138.49 € | E6: =SUMIF(Dnevno[Vrsta],$B6,Dnevno[Letno]) -> 49,661.90 €
B7: Diskrecijsko | C7: =SUMIF(Dnevno[Vrsta],$B7,Dnevno[Dnevno]) -> 36.29 € | D7: =SUMIF(Dnevno[Vrsta],$B7,Dnevno[Mesečno]) -> 1,103.82 € | E7: =SUMIF(Dnevno[Vrsta],$B7,Dnevno[Letno]) -> 13,245.85 €
B8: Prihranki | C8: =SUMIF(Dnevno[Vrsta],$B8,Dnevno[Dnevno]) -> 63.02 € | D8: =SUMIF(Dnevno[Vrsta],$B8,Dnevno[Mesečno]) -> 1,916.86 € | E8: =SUMIF(Dnevno[Vrsta],$B8,Dnevno[Letno]) -> 23,002.30 €
B9: Vrsta | C9: Opis | D9: Dnevno | E9: Mesečno | F9: Letno
B10: Dohodek | C10: Plača | D10: 246.58 € | E10: =Dnevno[[#This Row],[Letno]]/12 -> 7,500.14 € | F10: =Dnevno[[#This Row],[Dnevno]]*365 -> 90,001.70 €
B11: Dohodek | C11: Provizije/dodatki | D11: 13.70 € | E11: =Dnevno[[#This Row],[Letno]]/12 -> 416.71 € | F11: =Dnevno[[#This Row],[Dnevno]]*365 -> 5,000.50 €
B12: Dohodek | C12: Drugo 1 | D12: 82.19 € | E12: =Dnevno[[#This Row],[Letno]]/12 -> 2,499.95 € | F12: =Dnevno[[#This Row],[Dnevno]]*365 -> 29,999.35 €
B13: Dohodek | C13: Drugo 2 | D13: 0.00 € | E13: =Dnevno[[#This Row],[Letno]]/12 -> 0.00 € | F13: =Dnevno[[#This Row],[Dnevno]]*365 -> 0.00 €
B14: Dohodek | C14: Drugo 3 | D14: 0.00 € | E14: =Dnevno[[#This Row],[Letno]]/12 -> 0.00 € | F14: =Dnevno[[#This Row],[Dnevno]]*365 -> 0.00 €
B15: Dohodek | C15: Drugo 4 | D15: 0.00 € | E15: =Dnevno[[#This Row],[Letno]]/12 -> 0.00 € | F15: =Dnevno[[#This Row],[Dnevno]]*365 -> 0.00 €
B16: Stroški | C16: Zdravstveno zavarovanje | D16: 41.10 € | E16: =Dnevno[[#This Row],[Letno]]/12 -> 1,250.13 € | F16: =Dnevno[[#This Row],[Dnevno]]*365 -> 15,001.50 €
B17: Stroški | C17: Državni davek na dohodek | D17: 6.85 € | E17: =Dnevno[[#This Row],[Letno]]/12 -> 208.35 € | F17: =Dnevno[[#This Row],[Dnevno]]*365 -> 2,500.25 €
B18: Stroški | C18: Davek na motorna vozila/pristojbine | D18: 0.55 € | E18: =Dnevno[[#This Row],[Letno]]/12 -> 16.73 € | F18: =Dnevno[[#This Row],[Dnevno]]*365 -> 200.75 €
B19: Stroški | C19: Z motornimi vozili povezana plačila | D19: 10.96 € | E19: =Dnevno[[#This Row],[Letno]]/12 -> 333.37 € | F19: =Dnevno[[#This Row],[Dnevno]]*365 -> 4,000.40 €
B20: Stroški | C20: Hipoteka/najemnina | D20: 41.10 € | E20: =Dnevno[[#This Row],[Letno]]/12 -> 1,250.13 € | F20: =Dnevno[[#This Row],[Dnevno]]*365 -> 15,001.50 €
B21: Stroški | C21: Zavarovanje | D21: 0.68 € | E21: =Dnevno[[#This Row],[Letno]]/12 -> 20.68 € | F21: =Dnevno[[#This Row],[Dnevno]]*365 -> 248.20 €
B22: Stroški | C22: Elektrika | D22: 3.29 € | E22: =Dnevno[[#This Row],[Letno]]/12 -> 100.07 € | F22: =Dnevno[[#This Row],[Dnevno]]*365 -> 1,200.85 €
B23: Stroški | C23: Plin | D23: 1.64 € | E23: =Dnevno[[#This Row],[Letno]]/12 -> 49.88 € | F23: =Dnevno[[#This Row],[Dnevno]]*365 -> 598.60 €
B24: Stroški | C24: Voda | D24: 1.64 € | E24: =Dnevno[[#This Row],[Letno]]/12 -> 49.88 € | F24: =Dnevno[[#This Row],[Dnevno]]*365 -> 598.60 €
B25: Stroški | C25: Kanalščina | D25: 0.82 € | E25: =Dnevno[[#This Row],[Letno]]/12 -> 24.94 € | F25: =Dnevno[[#This Row],[Dnevno]]*365 -> 299.30 €
B26: Stroški | C26: Odvoz smeti | D26: 0.41 € | E26: =Dnevno[[#This Row],[Letno]]/12 -> 12.47 € | F26: =Dnevno[[#This Row],[Dnevno]]*365 -> 149.65 €
B27: Stroški | C27: Telefon | D27: 1.64 € | E27: =Dnevno[[#This Row],[Letno]]/12 -> 49.88 € | F27: =Dnevno[[#This Row],[Dnevno]]*365 -> 598.60 €
B28: Stroški | C28: Internet | D28: 1.64 € | E28: =Dnevno[[#This Row],[Letno]]/12 -> 49.88 € | F28: =Dnevno[[#This Row],[Dnevno]]*365 -> 598.60 €
B29: Stroški | C29: Premije za življenjsko zavarovanje/invalidnino | D29: 4.11 € | E29: =Dnevno[[#This Row],[Letno]]/12 -> 125.01 € | F29: =Dnevno[[#This Row],[Dnevno]]*365 -> 1,500.15 €
B30: Stroški | C30: Hrana | D30: 13.70 € | E30: =Dnevno[[#This Row],[Letno]]/12 -> 416.71 € | F30: =Dnevno[[#This Row],[Dnevno]]*365 -> 5,000.50 €
B31: Stroški | C31: Oblačila | D31: 3.29 € | E31: =Dnevno[[#This Row],[Letno]]/12 -> 100.07 € | F31: =Dnevno[[#This Row],[Dnevno]]*365 -> 1,200.85 €
B32: Stroški | C32: Stroški za zdravstvo/zobozdravstvo | D32: 1.64 € | E32: =Dnevno[[#This Row],[Letno]]/12 -> 49.88 € | F32: =Dnevno[[#This Row],[Dnevno]]*365 -> 598.60 €
B33: Stroški | C33: Avtobus | D33: 1.00 € | E33: =Dnevno[[#This Row],[Letno]]/12 -> 30.42 € | F33: =Dnevno[[#This Row],[Dnevno]]*365 -> 365.00 €
B34: Stroški | C34: Drugo 2 | D34: 0.00 € | E34: =Dnevno[[#This Row],[Letno]]/12 -> 0.00 € | F34: =Dnevno[[#This Row],[Dnevno]]*365 -> 0.00 €
B35: Stroški | C35: Drugo 3 | D35: 0.00 € | E35: =Dnevno[[#This Row],[Letno]]/12 -> 0.00 € | F35: =Dnevno[[#This Row],[Dnevno]]*365 -> 0.00 €
B36: Stroški | C36: Drugo 4 | D36: 0.00 € | E36: =Dnevno[[#This Row],[Letno]]/12 -> 0.00 € | F36: =Dnevno[[#This Row],[Dnevno]]*365 -> 0.00 €
B37: Diskrecijsko | C37: Kosila v restavracijah | D37: 3.29 € | E37: =Dnevno[[#This Row],[Letno]]/12 -> 100.07 € | F37: =Dnevno[[#This Row],[Dnevno]]*365 -> 1,200.85 €
B38: Diskrecijsko | C38: Darila | D38: 1.64 € | E38: =Dnevno[[#This Row],[Letno]]/12 -> 49.88 € | F38: =Dnevno[[#This Row],[Dnevno]]*365 -> 598.60 €
B39: Diskrecijsko | C39: Potovanja | D39: 6.16 € | E39: =Dnevno[[#This Row],[Letno]]/12 -> 187.37 € | F39: =Dnevno[[#This Row],[Dnevno]]*365 -> 2,248.40 €
B40: Diskrecijsko | C40: Zabava | D40: 3.29 € | E40: =Dnevno[[#This Row],[Letno]]/12 -> 100.07 € | F40: =Dnevno[[#This Row],[Dnevno]]*365 -> 1,200.85 €
B41: Diskrecijsko | C41: Osebna nega | D41: 0.82 € | E41: =Dnevno[[#This Row],[Letno]]/12 -> 24.94 € | F41: =Dnevno[[#This Row],[Dnevno]]*365 -> 299.30 €
B42: Diskrecijsko | C42: Nakupovanje | D42: 5.48 € | E42: =Dnevno[[#This Row],[Letno]]/12 -> 166.68 € | F42: =Dnevno[[#This Row],[Dnevno]]*365 -> 2,000.20 €
B43: Diskrecijsko | C43: Dobrodelne organizacije | D43: 1.64 € | E43: =Dnevno[[#This Row],[Letno]]/12 -> 49.88 € | F43: =Dnevno[[#This Row],[Dnevno]]*365 -> 598.60 €
B44: Diskrecijsko | C44: Članarine v klubih | D44: 0.82 € | E44: =Dnevno[[#This Row],[Letno]]/12 -> 24.94 € | F44: =Dnevno[[#This Row],[Dnevno]]*365 -> 299.30 €
B45: Diskrecijsko | C45: Izboljšave doma | D45: 13.15 € | E45: =Dnevno[[#This Row],[Letno]]/12 -> 399.98 € | F45: =Dnevno[[#This Row],[Dnevno]]*365 -> 4,799.75 €
B46: Diskrecijsko | C46: Drugo 1 | D46: 0.00 € | E46: =Dnevno[[#This Row],[Letno]]/12 -> 0.00 € | F46: =Dnevno[[#This Row],[Dnevno]]*365 -> 0.00 €
B47: Diskrecijsko | C47: Drugo 2 | D47: 0.00 € | E47: =Dnevno[[#This Row],[Letno]]/12 -> 0.00 € | F47: =Dnevno[[#This Row],[Dnevno]]*365 -> 0.00 €
B48: Prihranki | C48: Denarne rezerve | D48: 13.70 € | E48: =Dnevno[[#This Row],[Letno]]/12 -> 416.71 € | F48: =Dnevno[[#This Row],[Dnevno]]*365 -> 5,000.50 €
B49: Prihranki | C49: 401.000/itd | D49: 32.88 € | E49: =Dnevno[[#This Row],[Letno]]/12 -> 1,000.10 € | F49: =Dnevno[[#This Row],[Dnevno]]*365 -> 12,001.20 €
B50: Prihranki | C50: Račun za prihranke/naložbe | D50: 16.44 € | E50: =Dnevno[[#This Row],[Letno]]/12 -> 500.05 € | F50: =Dnevno[[#This Row],[Dnevno]]*365 -> 6,000.60 €
B51: Prihranki | C51: Drugo 1 | D51: 0.00 € | E51: =Dnevno[[#This Row],[Letno]]/12 -> 0.00 € | F51: =Dnevno[[#This Row],[Dnevno]]*365 -> 0.00 €
B52: Prihranki | C52: Drugo 2 | D52: 0.00 € | E52: =Dnevno[[#This Row],[Letno]]/12 -> 0.00 € | F52: =Dnevno[[#This Row],[Dnevno]]*365 -> 0.00 €
B53: Skupni znesek | D53: =SUMIF(Dnevno[Vrsta],"Dohodek",Dnevno[Dnevno])-SUMIF(Dnevno[Vrsta],"<>Prihodek",Dnevno[Dnevno]) -> -235.37 € | E53: =SUMIF(Dnevno[Vrsta],"Dohodek",Dnevno[Mesečno])-SUMIF(Dnevno[Vrsta],"<>Prihodek",Dnevno[Mesečno]) -> -7,159.17 € | F53: =SUMIF(Dnevno[Vrsta],"Dohodek",Dnevno[Letno])-SUMIF(Dnevno[Vrsta],"<>Prihodek",Dnevno[Letno]) -> -85,910.05 €

Sheet Dohodek
B1: OSEBNI DENARNI TOK | F1: VODNIK | G1: DNEVNI POVZETEK | H1: DOHODEK | I1: STROŠKI
B2: Skupni denarni tok do današnjega datuma: | D2: =LetniDenarniTokDoDanes -> 39,750.00 € | F2: To je letna ocena. Uporabite ta delovni list, če si želite ogledati letne zneske s predvidenimi mesečnimi vrednostmi Če želite v tabele dodati dnevne elemente, ocenite njihov letni znesek/vrednost in vnesite vrednost v stolpec za ustrezno leto.
B3: Dohodek | C3: Letno | D3: Mesečno
B4: Plača | C4: 90,000.00 € | D4: =Dohodek[[#This Row],[Letno ]]/12 -> 7,500.00 €
B5: Provizije/dodatki | C5: 5,000.00 € | D5: =Dohodek[[#This Row],[Letno ]]/12 -> 416.67 €
B6: Drugo 1 | C6: 30,000.00 € | D6: =Dohodek[[#This Row],[Letno ]]/12 -> 2,500.00 €
B7: Drugo 2 | D7: =Dohodek[[#This Row],[Letno ]]/12 -> 0.00 €
B8: Drugo 3 | D8: =Dohodek[[#This Row],[Letno ]]/12 -> 0.00 €
B9: Drugo 4 | D9: =Dohodek[[#This Row],[Letno ]]/12 -> 0.00 €
B10: Skupni znesek | C10: =SUBTOTAL(109,Dohodek[[Letno ]]) -> 125,000.00 € | D10: =SUBTOTAL(109,Dohodek[[Mesečno ]]) -> 10,416.67 €

Sheet Stroški
B1: OSEBNI DENARNI TOK | F1: VODNIK | G1: DOHODEK | H1: STROŠKI | I1: DISKRECIJSKO
B2: Skupni denarni tok do današnjega datuma: | D2: =LetniDenarniTokDoDanes -> 39,750.00 € | F2: To je letna ocena. Uporabite ta delovni list, če si želite ogledati letne zneske s predvidenimi mesečnimi vrednostmi Če želite v tabele dodati dnevne elemente, ocenite njihov letni znesek/vrednost in vnesite vrednost v stolpec za ustrezno leto.
B3: Stroški | C3: Letno | D3: Mesečno
B4: Zdravstveno zavarovanje | C4: 15,000.00 € | D4: =Stroški[[#This Row],[Letno ]]/12 -> 1,250.00 €
B5: Državni davek na dohodek | C5: 2,500.00 € | D5: =Stroški[[#This Row],[Letno ]]/12 -> 208.33 €
B6: Davek na motorna vozila/pristojbine | C6: 200.00 € | D6: =Stroški[[#This Row],[Letno ]]/12 -> 16.67 €
B7: Z motornimi vozili povezana plačila | C7: 4,000.00 € | D7: =Stroški[[#This Row],[Letno ]]/12 -> 333.33 €
B8: Hipoteka/najemnina | C8: 15,000.00 € | D8: =Stroški[[#This Row],[Letno ]]/12 -> 1,250.00 €
B9: Zavarovanje | C9: 250.00 € | D9: =Stroški[[#This Row],[Letno ]]/12 -> 20.83 €
B10: Elektrika | C10: 1,200.00 € | D10: =Stroški[[#This Row],[Letno ]]/12 -> 100.00 €
B11: Plin | C11: 600.00 € | D11: =Stroški[[#This Row],[Letno ]]/12 -> 50.00 €
B12: Voda/kanalščina | C12: 600.00 € | D12: =Stroški[[#This Row],[Letno ]]/12 -> 50.00 €
B13: Odvoz smeti | C13: 150.00 € | D13: =Stroški[[#This Row],[Letno ]]/12 -> 12.50 €
B14: Telefon | C14: 600.00 € | D14: =Stroški[[#This Row],[Letno ]]/12 -> 50.00 €
B15: Internet | C15: 600.00 € | D15: =Stroški[[#This Row],[Letno ]]/12 -> 50.00 €
B16: Premije za življenjsko zavarovanje/invalidnino | C16: 1,500.00 € | D16: =Stroški[[#This Row],[Letno ]]/12 -> 125.00 €
B17: Hrana | C17: 5,000.00 € | D17: =Stroški[[#This Row],[Letno ]]/12 -> 416.67 €
B18: Oblačila | C18: 1,200.00 € | D18: =Stroški[[#This Row],[Letno ]]/12 -> 100.00 €
B19: Stroški za zdravstvo/zobozdravstvo | C19: 600.00 € | D19: =Stroški[[#This Row],[Letno ]]/12 -> 50.00 €
B20: Drugo 1 | D20: =Stroški[[#This Row],[Letno ]]/12 -> 0.00 €
B21: Drugo 2 | D21: =Stroški[[#This Row],[Letno ]]/12 -> 0.00 €
B22: Skupni znesek | C22: =SUBTOTAL(109,Stroški[[Letno ]]) -> 49,000.00 € | D22: =SUBTOTAL(109,Stroški[[Mesečno ]]) -> 4,083.33 €

Sheet Diskrecijsko
B1: OSEBNI DENARNI TOK | F1: VODNIK | G1: STROŠKI | H1: DISKRECIJSKO | I1: PRIHRANKI
B2: Skupni denarni tok do današnjega datuma: | D2: =LetniDenarniTokDoDanes -> 39,750.00 € | F2: To je letna ocena. Uporabite ta delovni list, če si želite ogledati letne zneske s predvidenimi mesečnimi vrednostmi Če želite v tabele dodati dnevne elemente, ocenite njihov letni znesek/vrednost in vnesite vrednost v stolpec za ustrezno leto.
B3: Diskrecijski stroški | C3: Letno | D3: Mesečno
B4: Kosila v restavracijah | C4: 1,200.00 € | D4: =Diskrecijsko[[#This Row],[Letno ]]/12 -> 100.00 €
B5: Darila | C5: 600.00 € | D5: =Diskrecijsko[[#This Row],[Letno ]]/12 -> 50.00 €
B6: Potovanja | C6: 2,250.00 € | D6: =Diskrecijsko[[#This Row],[Letno ]]/12 -> 187.50 €
B7: Zabava | C7: 1,200.00 € | D7: =Diskrecijsko[[#This Row],[Letno ]]/12 -> 100.00 €
B8: Osebna nega | C8: 300.00 € | D8: =Diskrecijsko[[#This Row],[Letno ]]/12 -> 25.00 €
B9: Nakupovanje | C9: 2,000.00 € | D9: =Diskrecijsko[[#This Row],[Letno ]]/12 -> 166.67 €
B10: Dobrodelne organizacije | C10: 600.00 € | D10: =Diskrecijsko[[#This Row],[Letno ]]/12 -> 50.00 €
B11: Članarine v klubih | C11: 300.00 € | D11: =Diskrecijsko[[#This Row],[Letno ]]/12 -> 25.00 €
B12: Izboljšave doma | C12: 4,800.00 € | D12: =Diskrecijsko[[#This Row],[Letno ]]/12 -> 400.00 €
B13: Drugo 1 | D13: =Diskrecijsko[[#This Row],[Letno ]]/12 -> 0.00 €
B14: Drugo 2 | D14: =Diskrecijsko[[#This Row],[Letno ]]/12 -> 0.00 €
B15: Skupni znesek | C15: =SUBTOTAL(109,Diskrecijsko[[Letno ]]) -> 13,250.00 € | D15: =SUBTOTAL(109,Diskrecijsko[[Mesečno ]]) -> 1,104.17 €

Sheet Prihranki
B1: OSEBNI DENARNI TOK | F1: VODNIK | G1: DISKRECIJSKO | H1: PRIHRANKI
B2: Skupni denarni tok do današnjega datuma: | D2: =LetniDenarniTokDoDanes -> 39,750.00 € | F2: To je letna ocena. Uporabite ta delovni list, če si želite ogledati letne zneske s predvidenimi mesečnimi vrednostmi Če želite v tabele dodati dnevne elemente, ocenite njihov letni znesek/vrednost in vnesite vrednost v stolpec za ustrezno leto.
B3: Prihranki | C3: Letno | D3: Mesečno
B4: Denarne rezerve | C4: 5,000.00 € | D4: =Prihranki[[#This Row],[Letno ]]/12 -> 416.67 €
B5: 401.000/itd | C5: 12,000.00 € | D5: =Prihranki[[#This Row],[Letno ]]/12 -> 1,000.00 €
B6: Prihranki/naložbe | C6: 6,000.00 € | D6: =Prihranki[[#This Row],[Letno ]]/12 -> 500.00 €
B7: Drugo 1 | D7: =Prihranki[[#This Row],[Letno ]]/12 -> 0.00 €
B8: Drugo 2 | D8: =Prihranki[[#This Row],[Letno ]]/12 -> 0.00 €
B9: Skupni znesek | C9: =SUBTOTAL(109,Prihranki[[Letno ]]) -> 23,000.00 € | D9: =SUBTOTAL(109,Prihranki[[Mesečno ]]) -> 1,916.67 €
